bitfinex/quotes_BTCUSD_20251010
["timestamp","ask_amount","ask_price","bid_price","bid_amount"]
[1760110501553,0.08332206,118920.0,118910.0,0.47443895]
[1760110501848,0.00015329,118940.0,118930.0,0.16816614]
[1760110502063,0.00065784,118940.0,118930.0,0.55832614]
[1760110502278,0.02499999,118980.0,118970.0,0.1681096]
[1760110502495,0.02509999,118990.0,118980.0,0.16809547]
[1760110502714,0.02509999,118990.0,118980.0,0.26745547]
[1760110502715,0.02525135,118990.0,118980.0,0.26745547]
[1760110502924,0.00025136,118990.0,118980.0,0.45388033]
[1760110503133,0.00025136,118990.0,118980.0,0.55224033]
[1760110503562,9.87679051,119000.0,118990.0,0.16808135]
[1760110503779,9.87679051,119000.0,118990.0,0.28773616]
[1760110504452,9.87679051,119000.0,118990.0,0.11965481]
[1760110504660,9.96918051,119000.0,118990.0,0.11965481]
[1760110505083,9.96918051,119000.0,118990.0,0.08312206]
[1760110505295,10.1663505,119000.0,118990.0,0.08312206]
[1760110505780,9.9017905,119000.0,118990.0,0.08312206]
[1760110506211,9.9017905,119000.0,118990.0,0.25120341]
[1760110506427,9.87679051,119000.0,118990.0,0.29915341]
[1760110506650,9.87779051,119000.0,118990.0,0.47191874]
[1760110507093,9.87779051,119000.0,118990.0,0.20634739]
[1760110507314,9.88787252,119000.0,118990.0,0.39664341]
[1760110507538,9.88770456,119000.0,118990.0,0.39664341]
[1760110507981,9.88670456,119000.0,118990.0,0.29915341]
[1760110508196,10.14845377,119000.0,118990.0,0.29915341]
[1760110508411,10.14845377,119000.0,118990.0,0.39664341]
[1760110508620,9.88389377,119000.0,118990.0,0.33120021]
[1760110508835,9.88389377,119000.0,118990.0,0.37915021]
[1760110509262,9.88389377,119000.0,118990.0,0.47664021]
[1760110509731,9.88389377,119000.0,118990.0,0.21106886]
[1760110509946,10.30747376,119000.0,118990.0,0.08312206]
[1760110510167,11.06648612,119000.0,118990.0,0.08312206]
[1760110510392,10.3487123,119000.0,118990.0,0.08312206]
[1760110510845,10.0843523,119000.0,118990.0,0.08312206]
[1760110511061,10.18092508,119000.0,118990.0,0.08312206]
[1760110511284,9.89127964,119000.0,118990.0,0.11035015]
[1760110511492,10.31660099,119000.0,118990.0,0.11035015]
[1760110511698,11.13624664,119000.0,118990.0,0.08312206]
[1760110511951,10.18083838,119000.0,118990.0,0.08312206]
[1760110512172,10.87160664,119000.0,118990.0,0.08312206]
[1760110512407,9.88389377,119000.0,118990.0,0.25120341]
[1760110512620,11.03413481,119000.0,118990.0,0.08312206]
[1760110512829,10.72232368,119000.0,118990.0,0.08312206]
[1760110513040,11.23558471,119000.0,118990.0,0.09143427]
[1760110513270,10.74832367,119000.0,118990.0,0.08312206]
[1760110513486,0.16811113,118970.0,118950.0,0.29003951]
[1760110513741,0.24222555,118980.0,118960.0,0.08312206]
[1760110513971,0.50150209,118990.0,118970.0,0.04795]
[1760110514211,10.68707279,119000.0,118980.0,0.25121753]
[1760110514429,9.88119639,119000.0,118990.0,0.16808135]
[1760110514644,10.13817176,119000.0,118990.0,0.08312206]
[1760110514900,10.43726342,119000.0,118990.0,0.08312206]
[1760110515185,11.22452446,119000.0,118990.0,0.08312206]
[1760110515428,10.1705562,119000.0,118990.0,0.08312206]
[1760110515675,10.30603898,119000.0,118990.0,0.11300043]
[1760110515978,11.52432683,119000.0,118990.0,0.08312206]
[1760110516223,11.9894645,119000.0,118990.0,0.08312206]
[1760110516468,12.77772554,119000.0,118990.0,0.08312206]
[1760110517188,12.77756554,119000.0,118990.0,0.08312206]
[1760110517430,12.77756554,119000.0,118950.0,0.29656031]
[1760110517431,11.73470786,119000.0,118960.0,0.17652696]
[1760110517672,11.73470786,119000.0,118970.0,0.40507602]
[1760110517673,0.28899999,118990.0,118970.0,0.40507602]
[1760110517927,0.00738682,118990.0,118980.0,0.16809547]
[1760110518187,9.88229858,119000.0,118990.0,0.16808135]
[1760110518399,10.13891176,119000.0,118990.0,0.21538135]
[1760110518618,9.88231018,119000.0,118990.0,0.25372903]
[1760110518844,10.14631018,119000.0,118990.0,0.03834768]
[1760110519051,10.14631018,119000.0,118990.0,0.16808135]
[1760110519486,10.15539219,119000.0,118990.0,0.21538135]
[1760110519703,10.15539219,119000.0,118980.0,0.16809547]
[1760110519918,11.12564195,119000.0,118990.0,0.08312206]
[1760110520149,10.43702091,119000.0,118990.0,0.08312206]
[1760110520364,11.22528195,119000.0,118990.0,0.09143427]
[1760110520574,11.57536396,119000.0,118990.0,0.09143427]
[1760110520817,9.90899376,119000.0,118990.0,0.25951562]
[1760110521040,9.89139827,119000.0,118990.0,0.30750562]
[1760110521251,10.18135826,119000.0,118990.0,0.09143427]
[1760110521483,10.15635827,119000.0,118990.0,0.35700562]
[1760110521703,10.15635827,119000.0,118990.0,0.09143427]
[1760110521932,10.15635827,119000.0,118990.0,0.25951562]
[1760110522168,9.88499377,119000.0,118990.0,0.35700562]
[1760110522391,9.34215204,119000.0,118990.0,0.35700562]
[1760110522618,9.31589283,119000.0,118990.0,0.35700562]
[1760110522843,9.19063362,119000.0,118990.0,0.35700562]
[1760110523063,9.16637441,119000.0,118990.0,0.35700562]
[1760110523281,9.1411152,119000.0,118990.0,0.35700562]
[1760110523554,9.783541,119000.0,118990.0,0.35700562]
[1760110523775,8.97726158,119000.0,118990.0,0.34869341]
[1760110523991,9.64594659,119000.0,118990.0,0.25220341]
[1760110524225,8.56540728,119000.0,118990.0,0.32156341]
[1760110524460,8.19397822,119000.0,118990.0,0.58448341]
[1760110524686,7.86628915,119000.0,118990.0,0.7605634]
[1760110524892,7.75669504,119000.0,118990.0,1.0244834]
[1760110525101,7.40953158,119000.0,118990.0,1.0244834]
[1760110525328,7.23069978,119000.0,118990.0,1.12448339]
[1760110525558,6.93810106,119000.0,118990.0,1.7931684]
[1760110525773,6.58079831,119000.0,118990.0,1.84811642]
[1760110525988,6.19377287,119000.0,118990.0,1.84811642]
[1760110526205,5.38924685,119000.0,118990.0,1.91526646]
[1760110526442,4.03697033,119000.0,118990.0,0.88517021]
[1760110526670,3.41435021,119000.0,118990.0,1.50546429]
[1760110526900,3.28714052,119000.0,118990.0,1.77307126]
[1760110527113,2.91665329,119000.0,118990.0,2.49670429]
[1760110527371,0.01363341,118990.0,118980.0,1.28258234]
[1760110527648,2.46318008,119000.0,118990.0,0.16808135]
[1760110527906,2.4090289,119000.0,118990.0,0.89171438]
[1760110528129,2.10439083,119000.0,118990.0,0.89471438]
[1760110528340,2.00579981,119000.0,118990.0,0.17108135]
[1760110528553,0.06639503,119070.0,119060.0,0.16798252]
[1760110528765,0.07386309,119070.0,119060.0,0.25110458]
[1760110529192,0.06619503,119090.0,119080.0,0.16795431]
[1760110529399,2.72363303,119100.0,119090.0,0.16794021]
[1760110529607,2.26424,119100.0,119090.0,0.25106227]
[1760110529814,2.26474571,119100.0,119090.0,0.25106227]
[1760110530036,2.00050571,119100.0,119090.0,0.25106227]
[1760110530246,1.55631065,119100.0,119090.0,0.25106227]
[1760110530480,1.14878683,119100.0,119090.0,0.25106227]
[1760110530688,1.14878683,119100.0,119090.0,0.9746953]
[1760110530689,1.02220416,119100.0,119090.0,0.9746953]
[1760110530904,0.70263664,119100.0,119090.0,1.03860503]
[1760110531240,0.66980155,119100.0,119090.0,1.03860503]
[1760110531326,0.64456815,119100.0,119090.0,1.30264503]
[1760110531542,0.10684944,119100.0,119090.0,0.919012]
[1760110531762,0.0002,119170.0,119150.0,0.16785564]
[1760110531977,0.0002,119170.0,119160.0,0.25096361]
[1760110531978,0.26471172,119170.0,119160.0,0.25096361]
[1760110532223,7e-05,119180.0,119170.0,0.16782747]
[1760110532458,7e-05,119180.0,119170.0,0.25094953]
[1760110532948,7e-05,119180.0,119170.0,1.03848086]
[1760110533211,7e-05,119180.0,119170.0,0.31484783]
[1760110533451,0.00015296,119200.0,119190.0,0.16779931]
[1760110533698,0.00015296,119200.0,119190.0,0.25092137]
[1760110533929,0.02599999,119240.0,119230.0,0.16774301]
[1760110534187,0.02599999,119240.0,119230.0,0.25086507]
[1760110534188,0.00115141,119240.0,119230.0,0.25086507]
[1760110534432,0.26639141,119240.0,119230.0,0.25086507]
[1760110534909,0.00115141,119240.0,119230.0,0.25086507]
[1760110535142,0.00115141,119240.0,119230.0,0.31530999]
[1760110535382,0.99018444,119240.0,119230.0,0.25086507]
[1760110535608,0.26655141,119240.0,119230.0,0.08312206]
[1760110535825,0.46655139,119240.0,119230.0,0.25086507]
[1760110536285,0.26675141,119240.0,119230.0,0.25086507]
[1760110536508,0.46675139,119240.0,119230.0,0.25086507]
[1760110536959,0.00115141,119240.0,119230.0,0.25086507]
[1760110537188,1e-08,119240.0,119230.0,0.5827801]
[1760110537418,0.08072,119310.0,119300.0,0.16764459]
[1760110537655,1.31466711,119310.0,119280.0,0.17603554]
[1760110537918,0.19999998,119280.0,119260.0,0.1760558]
[1760110538155,0.22499997,119290.0,119280.0,0.1676727]
[1760110538385,0.26616,119300.0,119290.0,0.16765864]
[1760110538613,0.29166489,119310.0,119300.0,0.16764459]
[1760110538881,0.0005049,119310.0,119300.0,0.25076665]
[1760110539565,0.0015049,119310.0,119300.0,0.25076665]
[1760110539994,0.00837451,119310.0,119300.0,0.51700665]
[1760110540211,0.00737451,119310.0,119300.0,0.25076665]
[1760110540433,0.00737451,119310.0,119300.0,0.51696665]
[1760110540642,0.00737451,119310.0,119300.0,0.25076665]
[1760110540855,0.54737449,119310.0,119300.0,0.08312206]
[1760110541068,0.55470819,119310.0,119300.0,0.25076665]
[1760110541285,0.81361449,119310.0,119300.0,0.25076665]
[1760110541513,0.94336139,119310.0,119280.0,0.17605111]
[1760110541728,0.34,119290.0,119280.0,0.25917317]
[1760110541950,0.80615998,119290.0,119260.0,0.1760558]
[1760110542161,0.56499997,119280.0,119270.0,0.08312206]
[1760110542374,0.34,119280.0,119270.0,0.25080882]
[1760110542618,0.34,119300.0,119290.0,0.16764732]
[1760110542797,0.22560487,119310.0,119300.0,1.3938]
[1760110543012,0.33034729,119310.0,119300.0,1.3938]
[1760110543244,0.59650729,119310.0,119300.0,1.3938]
[1760110543669,0.03292731,119310.0,119300.0,1.56144459]
[1760110543912,0.2079273,119310.0,119300.0,1.64456665]
[1760110544132,0.0006049,119310.0,119300.0,1.64456665]
[1760110544346,0.32302487,119310.0,119300.0,1.3938]
[1760110544577,0.33034575,119310.0,119300.0,1.3938]
[1760110544796,0.62419135,119310.0,119300.0,1.3938]
[1760110545016,0.96419135,119310.0,119300.0,1.3938]
[1760110545459,1.34731341,119310.0,119300.0,1.1938]
[1760110545685,1.64731341,119310.0,119300.0,1.1938]
[1760110545900,1.91343341,119310.0,119300.0,1.1938]
[1760110546852,2.21343341,119310.0,119300.0,1.1938]
[1760110547072,2.87253698,119310.0,119300.0,1.1938]
[1760110547290,3.74470532,119310.0,119300.0,1.1484]
[1760110547507,3.56221713,119310.0,119300.0,1.1484]
[1760110547724,3.15720713,119310.0,119300.0,1.1484]
[1760110547942,2.42345659,119310.0,119300.0,1.1484]
[1760110548160,2.98228659,119310.0,119300.0,1.1484]
[1760110548379,3.28228659,119310.0,119300.0,1.1484]
[1760110548590,3.65022013,119310.0,119300.0,1.1484]
[1760110548828,2.61328659,119310.0,119300.0,1.1484]
[1760110549062,4.18767675,119310.0,119300.0,1.1484]
[1760110549278,4.74092532,119310.0,119300.0,1.11269535]
[1760110549490,5.10177332,119310.0,119300.0,1.07335575]
[1760110549724,8.24492488,119310.0,119300.0,0.88045102]
[1760110549941,8.24492488,119310.0,119300.0,0.32365499]
[1760110550154,8.24492488,119310.0,119300.0,0.11430951]
[1760110550431,0.56499997,119240.0,119230.0,0.06619503]
[1760110550646,1.92052258,119240.0,119230.0,0.06619503]
[1760110550864,2.02027258,119240.0,119230.0,0.06619503]
[1760110551100,2.18800153,119240.0,119230.0,0.06619503]
[1760110551326,1.12499997,119230.0,119220.0,2.0]
[1760110551542,1.86918592,119230.0,119220.0,2.0]
[1760110551758,1.70194718,119230.0,119220.0,2.0]
[1760110552241,2.06105075,119230.0,119220.0,2.0]
[1760110552449,0.98430512,119230.0,119220.0,2.0]
[1760110552906,1.96742718,119230.0,119220.0,2.0]
[1760110553120,2.78192667,119230.0,119220.0,2.0]
[1760110553335,2.21801241,119230.0,119220.0,2.0]
[1760110553580,4.03567893,119230.0,119220.0,2.0]
[1760110553793,2.48617593,119230.0,119220.0,2.0]
[1760110554014,2.2465445,119230.0,119220.0,2.0]
[1760110554283,2.9153445,119230.0,119220.0,2.0]
[1760110554492,2.82324093,119230.0,119220.0,2.0]
[1760110554708,3.0568105,119230.0,119220.0,2.0]
[1760110554926,3.1368073,119230.0,119220.0,2.0]
[1760110555145,3.3568105,119230.0,119220.0,2.0]
[1760110555374,1.36495506,119230.0,119220.0,2.0]
[1760110555589,0.029876,119240.0,119230.0,0.16774301]
[1760110555810,0.06030857,119270.0,119230.0,0.16774301]
[1760110555811,0.02499999,119260.0,119230.0,0.16774301]
[1760110556030,0.00317245,119240.0,119230.0,0.16774301]
[1760110556455,0.00317245,119240.0,119230.0,0.25086507]
[1760110556665,0.00317245,119240.0,119230.0,0.24986507]
[1760110556925,0.00327245,119240.0,119230.0,0.24986507]
[1760110557585,0.00327245,119240.0,119230.0,0.25086507]
[1760110558723,0.00327245,119240.0,119230.0,0.08412206]
[1760110558930,0.00327245,119240.0,119230.0,0.16874301]
[1760110559143,0.00327245,119240.0,119230.0,0.25186507]
[1760110559358,0.00327245,119240.0,119230.0,0.34664507]
[1760110559359,0.23523245,119240.0,119230.0,0.34664507]
[1760110559610,0.00327245,119240.0,119230.0,0.34564507]
[1760110560060,1e-08,119240.0,119230.0,0.34564507]
[1760110560492,1e-08,119240.0,119230.0,0.25186507]
[1760110560931,1e-08,119240.0,119230.0,0.34664507]
[1760110561146,1e-08,119240.0,119230.0,0.68664507]
[1760110561591,0.04733908,119300.0,119290.0,0.16765864]
[1760110561815,0.0251513,119300.0,119290.0,0.14855405]
[1760110562104,0.0251513,119300.0,119290.0,0.08312206]
[1760110562106,0.27239131,119300.0,119290.0,0.08312206]
[1760110562321,0.27239131,119300.0,119290.0,0.16765864]
[1760110562544,0.02499999,119290.0,119280.0,0.03182]
[1760110562752,0.02499999,119290.0,119250.0,0.16771181]
[1760110562753,0.02499999,119270.0,119250.0,0.16771181]
[1760110562964,0.29715999,119260.0,119250.0,0.16771181]
[1760110563436,0.29715999,119260.0,119230.0,0.19956301]
[1760110563657,0.02233909,119280.0,119270.0,0.16768676]
[1760110564102,0.09568129,119280.0,119250.0,0.001]
[1760110564314,0.09568129,119280.0,119270.0,0.16768676]
[1760110564543,0.36824129,119280.0,119260.0,0.16770064]
[1760110564765,0.1411,119270.0,119250.0,0.001]
[1760110564967,0.27232,119260.0,119250.0,0.001]
[1760110565397,0.36785,119260.0,119250.0,0.001]
[1760110565621,0.3,119250.0,119220.0,2.0]
[1760110565865,0.4133,119240.0,119220.0,2.0]
[1760110566076,0.1411,119230.0,119220.0,2.0]
[1760110566294,0.4351158,119230.0,119220.0,2.0]
[1760110566517,1.0073158,119230.0,119220.0,2.0]
[1760110566732,1.59818087,119230.0,119220.0,2.0]
[1760110566946,1.89818087,119230.0,119220.0,2.0]
[1760110567169,1.89818087,119230.0,119220.0,2.00015141]
[1760110567377,2.09082396,119230.0,119220.0,2.00156168]
[1760110567604,2.09082396,119230.0,119220.0,1.95616168]
[1760110567605,4.04514997,119230.0,119220.0,1.95616168]
[1760110567838,4.18730088,119230.0,119220.0,1.95616168]
[1760110568051,5.33398388,119230.0,119220.0,1.95616168]
[1760110568262,1.90869961,119230.0,119220.0,1.95616168]
[1760110568478,4.69208382,119230.0,119220.0,1.95616168]
[1760110568701,2.81314888,119230.0,119220.0,1.95616168]
[1760110568920,2.62055446,119230.0,119220.0,1.95616168]
[1760110569141,1.18365487,119230.0,119220.0,1.95616168]
[1760110569359,1.48365487,119230.0,119220.0,1.95616168]
[1760110569580,1.18365487,119230.0,119220.0,1.95616168]
[1760110569925,1.45659487,119230.0,119220.0,1.95616168]
[1760110570010,0.73351281,119230.0,119220.0,1.95616168]
[1760110570222,0.81643487,119230.0,119220.0,1.95616168]
[1760110570444,0.89703487,119230.0,119220.0,1.95616168]
[1760110570659,0.88375487,119230.0,119220.0,1.95616168]
[1760110570877,1.70373788,119230.0,119220.0,1.95616168]
[1760110571090,2.36284145,119230.0,119220.0,1.95616168]
[1760110571318,2.03302747,119230.0,119220.0,1.95616168]
[1760110571548,1.34253989,119230.0,119220.0,1.95616168]
[1760110571784,0.40265487,119230.0,119220.0,1.95616168]
[1760110572022,0.02551701,119230.0,119220.0,2.12391876]
[1760110572243,0.28041368,119230.0,119220.0,2.12391876]
[1760110572485,0.28041368,119230.0,119220.0,1.95616168]
[1760110572486,0.37594368,119230.0,119220.0,1.95616168]
[1760110572931,0.00857368,119230.0,119220.0,2.12391876]
[1760110573148,0.00757368,119230.0,119220.0,2.30402082]
[1760110573992,0.27937368,119230.0,119220.0,2.30402082]
[1760110574414,0.00757368,119230.0,119220.0,2.30402082]
[1760110574633,0.08341368,119230.0,119220.0,2.30402082]
[1760110575057,0.00757368,119230.0,119220.0,2.30402082]
[1760110575492,0.00377619,119230.0,119220.0,2.64402082]
[1760110575919,0.02250024,119280.0,119250.0,0.1677134]
[1760110576166,0.02250024,119280.0,119270.0,0.16768676]
[1760110576381,0.01562661,119290.0,119280.0,0.1676727]
[1760110576597,0.08192164,119310.0,119280.0,0.25917839]
[1760110576825,0.08192164,119310.0,119260.0,0.1760856]
[1760110576826,0.04557,119290.0,119260.0,0.1760856]
[1760110577038,0.27104,119280.0,119270.0,0.16768626]
[1760110577247,0.28666661,119280.0,119260.0,0.29253766]
[1760110577540,0.28666661,119280.0,119260.0,0.16770082]
[1760110577541,0.27092,119270.0,119260.0,0.16770082]
[1760110577750,0.00015129,119280.0,119240.0,0.17606211]
[1760110577961,0.27092,119270.0,119250.0,0.25921735]
[1760110578184,0.28654784,119270.0,119250.0,0.25921735]
[1760110578394,0.28654784,119270.0,119260.0,0.16770082]
[1760110578614,0.28654784,119270.0,119250.0,0.29103735]
[1760110578836,0.28654784,119270.0,119250.0,0.1677143]
[1760110579050,0.60372107,119270.0,119230.0,0.19956119]
[1760110579266,0.5829285,119270.0,119230.0,0.28268325]
[1760110579481,0.53375273,119260.0,119230.0,0.08312206]
[1760110579699,0.53375273,119260.0,119220.0,2.13074268]
[1760110579700,0.55776662,119260.0,119220.0,2.13074268]
[1760110579911,0.64088868,119260.0,119230.0,0.16774301]
[1760110580131,0.46480091,119260.0,119230.0,0.16774301]
[1760110580348,0.1411,119250.0,119220.0,2.21386488]
[1760110580572,0.15672885,119250.0,119220.0,2.12235675]
[1760110580809,0.27024,119240.0,119220.0,2.1307446]
[1760110581042,0.27012,119240.0,119230.0,0.29107076]
[1760110581317,0.27012,119240.0,119230.0,0.29207222]
[1760110581495,0.1411,119270.0,119240.0,0.16772539]
[1760110581713,0.0005285,119260.0,119250.0,0.16771488]
[1760110582173,0.2710085,119260.0,119250.0,0.16771488]
[1760110582392,0.28664103,119260.0,119250.0,0.16771488]
[1760110582658,0.28664103,119260.0,119230.0,0.29248232]
[1760110582877,0.55826826,119260.0,119230.0,0.0014101]
[1760110583085,0.32213261,119250.0,119230.0,0.0014101]
[1760110583306,0.27032,119240.0,119230.0,0.0014101]
[1760110583519,0.28595253,119240.0,119230.0,0.0014101]
[1760110583726,0.54921148,119240.0,119230.0,0.0014101]
[1760110584162,0.16774301,119230.0,119220.0,1.95401435]
[1760110584375,0.61849354,119230.0,119220.0,1.95416576]
[1760110584584,0.35522053,119230.0,119220.0,1.95416576]
[1760110584801,0.30965053,119230.0,119220.0,1.95416576]
[1760110585012,0.34,119240.0,119220.0,2.13031069]
[1760110585277,0.3556729,119240.0,119230.0,0.16774301]
[1760110585508,0.6257529,119240.0,119230.0,0.16774301]
[1760110585735,0.2857129,119240.0,119220.0,2.12192212]
[1760110585940,0.2857129,119240.0,119220.0,1.95416576]
[1760110585941,0.720811,119240.0,119220.0,1.95416576]
[1760110586159,0.01331624,119230.0,119220.0,1.95416576]
[1760110586377,0.44884624,119230.0,119220.0,1.95416576]
[1760110586595,0.53432496,119230.0,119220.0,1.95416576]
[1760110586811,0.70206797,119230.0,119220.0,1.95416576]
[1760110587256,1.00206797,119230.0,119220.0,1.95416576]
[1760110587460,0.89463353,119230.0,119220.0,1.90878575]
[1760110587667,1.35250797,119230.0,119220.0,1.90878575]
[1760110587892,1.37808509,119230.0,119220.0,1.90878575]
[1760110588126,0.92764509,119230.0,119220.0,1.90978575]
[1760110588355,1.03800509,119230.0,119220.0,1.90978575]
[1760110588787,1.69710866,119230.0,119220.0,1.90978575]
[1760110589007,1.34674866,119230.0,119220.0,1.90978575]
[1760110589236,1.69690265,119230.0,119220.0,1.90978575]
[1760110589447,1.34674265,119230.0,119220.0,1.90878575]
[1760110589666,0.76827908,119230.0,119220.0,1.90878575]
[1760110589883,0.51989607,119230.0,119220.0,1.90931448]
[1760110590084,0.02319424,119230.0,119220.0,1.90931448]
[1760110590288,0.57147832,119230.0,119220.0,1.90931448]
[1760110590500,0.12436403,119230.0,119220.0,1.90931448]
[1760110590713,0.04124197,119230.0,119220.0,2.07707156]
[1760110590936,0.31160197,119230.0,119220.0,2.07707156]
[1760110591353,0.31152197,119230.0,119220.0,2.07707156]
[1760110591569,0.04224197,119230.0,119220.0,2.17647156]
[1760110591764,0.26712907,119230.0,119220.0,2.25959362]
[1760110591982,0.29576907,119230.0,119220.0,2.25959362]
[1760110592194,0.29576907,119230.0,119220.0,1.90931448]
[1760110592398,0.47917139,119230.0,119220.0,1.90931448]
[1760110592608,0.76359473,119230.0,119220.0,1.90931448]
[1760110592812,0.39886473,119230.0,119220.0,1.90931448]
[1760110593070,0.83564774,119230.0,119220.0,1.90931448]
[1760110593282,0.93117774,119230.0,119220.0,1.90698736]
[1760110593510,0.7452598,119230.0,119220.0,1.90698736]
[1760110593723,1.0142198,119230.0,119220.0,1.90698736]
[1760110594162,1.3542198,119230.0,119220.0,1.90698736]
[1760110595039,2.24388437,119230.0,119220.0,1.90698736]
[1760110595250,1.3537798,119230.0,119220.0,1.90698736]
[1760110595473,1.73443152,119230.0,119220.0,1.90698736]
[1760110595686,1.48616851,119230.0,119220.0,1.90698736]
[1760110595902,1.43040164,119230.0,119220.0,1.90698736]
[1760110596111,1.69904164,119230.0,119220.0,1.90698736]
[1760110596332,1.77968164,119230.0,119220.0,1.90698736]
[1760110596548,2.07968164,119230.0,119220.0,1.90698736]
[1760110596784,1.94142264,119230.0,119220.0,1.90698736]
[1760110596993,2.21560964,119230.0,119220.0,1.90698736]
[1760110597202,2.21119166,119230.0,119220.0,1.90698736]
[1760110597422,2.21659671,119230.0,119220.0,1.52162931]
[1760110597638,3.49292634,119230.0,119220.0,1.52162931]
[1760110597855,4.78927034,119230.0,119220.0,1.52162931]
[1760110598081,3.75227234,119230.0,119220.0,1.52162931]
[1760110598296,1.43038871,119230.0,119220.0,1.52162931]
[1760110598518,2.32318116,119230.0,119220.0,1.52162931]
[1760110598744,2.33206116,119230.0,119220.0,1.52162931]
[1760110599724,3.09638116,119230.0,119220.0,1.52162931]
[1760110599963,3.09637132,119230.0,119220.0,1.52162931]
[1760110600453,2.15946168,119230.0,119220.0,1.52162931]
[1760110600923,2.99475132,119230.0,119220.0,1.52162931]
[1760110601163,2.40391132,119230.0,119220.0,1.52162931]
[1760110601402,1.38636168,119230.0,119220.0,1.52162931]
[1760110601641,2.32327132,119230.0,119220.0,1.52162931]
[1760110601882,1.51552831,119230.0,119220.0,1.52162931]
[1760110602120,0.06037581,119230.0,119220.0,1.68938639]
[1760110602370,0.02666907,119230.0,119220.0,1.86803845]
[1760110602622,0.22046773,119230.0,119220.0,1.86803845]
[1760110602866,0.01914773,119230.0,119220.0,1.86803845]
[1760110603102,0.28782773,119230.0,119220.0,1.86803845]
[1760110603366,0.28782773,119230.0,119220.0,1.60475137]
[1760110603367,0.28682773,119230.0,119220.0,1.60475137]
[1760110603607,0.02566099,119230.0,119220.0,1.70028137]
[1760110603864,0.28682773,119230.0,119220.0,1.86803845]
[1760110604086,0.01814773,119230.0,119220.0,1.86803845]
[1760110604301,0.01814773,119230.0,119220.0,3.19840513]
[1760110604656,0.01914773,119230.0,119220.0,2.47675845]
[1760110604908,0.01914773,119230.0,119220.0,3.19840513]
[1760110605155,0.01914773,119230.0,119220.0,2.47675845]
[1760110605633,0.01814773,119230.0,119220.0,2.20803845]
[1760110607457,0.01814773,119230.0,119220.0,1.70028137]
[1760110607678,0.73979441,119230.0,119220.0,1.52162931]
[1760110607907,0.80654719,119230.0,119220.0,1.52162931]
[1760110608129,1.03358788,119230.0,119220.0,1.52262931]
[1760110608339,0.76534788,119230.0,119220.0,1.52262931]
[1760110608641,0.30434051,119230.0,119220.0,1.78084639]
[1760110608853,1.00795441,119230.0,119220.0,1.52162931]
[1760110609066,1.02598719,119230.0,119220.0,1.52162931]
[1760110609277,0.30434051,119230.0,119220.0,1.68938639]
[1760110609490,1.01547933,119230.0,119220.0,1.52162931]
[1760110609705,1.7520718,119230.0,119220.0,1.52162931]
[1760110609924,0.76535211,119230.0,119220.0,1.52162931]
[1760110610200,0.05938318,119230.0,119220.0,1.68938639]
[1760110610456,0.29411265,119230.0,119220.0,1.86296845]
[1760110610707,0.01814773,119230.0,119220.0,2.26634921]
[1760110610955,0.03146488,119250.0,119220.0,2.26634921]
[1760110610956,0.72305667,119250.0,119240.0,0.16772895]
[1760110611165,0.00893729,119250.0,119240.0,0.35650101]
[1760110611390,0.26992999,119250.0,119240.0,0.35650101]
[1760110611608,0.27741729,119250.0,119240.0,0.35650101]
[1760110611824,0.00893729,119250.0,119240.0,0.35650101]
[1760110612035,0.00140999,119250.0,119240.0,0.96490101]
[1760110612466,0.84109664,119290.0,119280.0,0.1676727]
[1760110612687,0.02320004,119290.0,119280.0,0.37307476]
[1760110612902,0.02320004,119300.0,119290.0,0.16765864]
[1760110613110,0.02320004,119300.0,119290.0,0.0387]
[1760110613111,0.27576782,119300.0,119290.0,0.0387]
[1760110613321,0.98988668,119300.0,119290.0,0.20635864]
[1760110613538,0.0001,119310.0,119300.0,0.16764459]
[1760110613757,0.00025134,119310.0,119300.0,0.34122665]
[1760110614233,0.00025134,119310.0,119300.0,0.94958665]
[1760110614506,0.0002,119320.0,119310.0,0.16763054]
[1760110614737,0.72872668,119330.0,119310.0,0.36452412]
[1760110614956,0.72164668,119320.0,119310.0,0.09805206]
[1760110615168,0.16762059,119320.0,119290.0,0.20635701]
[1760110615384,0.98988668,119310.0,119300.0,0.08312206]
[1760110615604,1.49751722,119310.0,119290.0,0.0832734]
[1760110615827,0.88929127,119300.0,119290.0,0.00015134]
[1760110616066,0.72164668,119300.0,119290.0,0.00015134]
[1760110616588,0.34,119310.0,119290.0,0.28963204]
[1760110616796,0.26804,119300.0,119290.0,0.2980146]
[1760110617004,0.26796,119300.0,119290.0,0.2980146]
[1760110617224,0.04723,119310.0,119290.0,0.0832734]
[1760110617446,0.26788,119300.0,119290.0,0.00015134]
[1760110617725,0.98952668,119300.0,119290.0,0.00015134]
[1760110617979,0.86620668,119310.0,119290.0,0.00015134]
[1760110618226,0.26784,119300.0,119290.0,0.00015134]
[1760110618490,0.2704816,119300.0,119290.0,0.00115134]
[1760110618980,0.0026416,119300.0,119290.0,0.00015134]
[1760110619218,0.2705216,119300.0,119290.0,0.16918101]
[1760110619448,0.2705216,119300.0,119290.0,0.00015134]
[1760110619675,0.0026416,119300.0,119290.0,0.16780998]
[1760110619926,0.0026416,119300.0,119290.0,0.38009204]
[1760110619927,0.2702816,119300.0,119290.0,0.38009204]
[1760110620132,0.0026416,119300.0,119290.0,0.38009204]
[1760110620371,0.2702816,119300.0,119290.0,0.0832734]
[1760110620587,0.2702816,119300.0,119290.0,0.00015134]
[1760110620588,0.3676116,119300.0,119290.0,0.00015134]
[1760110620801,0.2702816,119300.0,119290.0,0.00015134]
[1760110621014,0.2702416,119300.0,119290.0,0.00015134]
[1760110621473,0.53521619,119300.0,119290.0,0.00015134]
[1760110621686,0.82906299,119300.0,119290.0,0.00015134]
[1760110621898,1.89070967,119300.0,119290.0,0.00015134]
[1760110622327,1.97383173,119300.0,119290.0,0.00015134]
[1760110622537,2.27383173,119300.0,119290.0,0.00015134]
[1760110622749,1.55218505,119300.0,119290.0,0.00015134]
[1760110622970,2.50710953,119300.0,119290.0,0.00015134]
[1760110623179,2.00623173,119300.0,119290.0,0.00015134]
[1760110623392,1.97343173,119300.0,119290.0,0.00015134]
[1760110623606,2.27343173,119300.0,119290.0,0.00015134]
[1760110624258,2.59136753,119300.0,119290.0,0.00015134]
[1760110624489,2.89373653,119300.0,119290.0,0.00015134]
[1760110624711,2.30623173,119300.0,119290.0,0.00015134]
[1760110624950,2.65387173,119300.0,119290.0,0.00015134]
[1760110625156,1.70842986,119300.0,119290.0,0.00015134]
[1760110625380,2.65379173,119300.0,119290.0,0.00015134]
[1760110625588,2.108584,119300.0,119290.0,0.00015134]
[1760110625806,4.92661415,119300.0,119290.0,0.00015134]
[1760110626022,7.15863314,119300.0,119290.0,1e-08]
[1760110626249,7.15508078,119300.0,119290.0,1e-08]
[1760110626466,0.50772895,119240.0,119230.0,0.06760514]
[1760110626698,0.6340066,119240.0,119230.0,0.06760514]
[1760110627134,0.34,119240.0,119230.0,0.06760514]
[1760110627352,1.59186563,119240.0,119230.0,0.00141011]
[1760110627618,1.96898099,119240.0,119230.0,0.00141011]